bitfinex-derivatives/quotes_SOLF0:USTF0_20260126
["timestamp","ask_amount","ask_price","bid_price","bid_amount"]
[1769408872719,3.40767451,122.57,122.52,0.05423876]
[1769408873320,6.12535209,122.57,122.52,0.05423876]
[1769408874019,3.40767451,122.56,122.52,0.05423876]
[1769408875218,3.40767451,122.58,122.52,0.41511192]
[1769408875420,3.40767451,122.58,122.53,3.07855074]
[1769408875628,3.40767451,122.58,122.53,3.07458179]
[1769408876320,3.40767451,122.58,122.54,0.05336304]
[1769408881821,3.40767451,122.57,122.51,0.36087316]
[1769408882027,3.38099299,122.56,122.5,7.7708362]
[1769408883531,2.71370863,122.55,122.5,0.4142362]
[1769408883732,6.22099233,122.55,122.5,0.4142362]
[1769408884225,0.05157572,122.54,122.5,0.4142362]
[1769408885633,3.5072837,122.57,122.51,0.41328788]
[1769408885828,3.5072837,122.57,122.51,0.47116997]
[1769408887631,3.5072837,122.6,122.53,3.12699651]
[1769408888226,3.5072837,122.59,122.53,3.12699651]
[1769408888432,6.22099233,122.59,122.53,0.41328788]
[1769408888631,6.22099233,122.59,122.55,0.05376373]
[1769408890432,3.5072837,122.59,122.55,0.05376373]
[1769408903648,6.22099233,122.59,122.55,0.05376373]
[1769408903850,3.58043874,122.58,122.55,0.05376373]
[1769408907648,3.58043874,122.56,122.49,10.53704278]
[1769408907853,3.58043874,122.56,122.5,3.18004278]
[1769408908040,3.58043874,122.56,122.5,0.46633415]
[1769408909447,0.05589365,122.54,122.5,0.46633415]
[1769408910252,3.63633239,122.54,122.48,328.90004278]
[1769408910654,3.63633239,122.54,122.49,3.18004278]
[1769408911451,3.63633239,122.54,122.49,10.53714278]
[1769408914159,3.63633239,122.54,122.51,0.46835147]
[1769408914160,0.05589365,122.54,122.51,0.46835147]
[1769408914360,7.3522,122.58,122.52,2.71370863]
[1769408914361,3.45806181,122.58,122.52,2.71370863]
[1769408915759,3.45806181,122.58,122.54,0.05543429]
[1769408919160,3.45806181,122.6,122.54,2.76914292]
[1769408920256,3.45806181,122.6,122.54,3.23749439]
[1769408920456,3.45806181,122.6,122.55,3.1820601]
[1769408923564,3.45806181,122.6,122.55,0.46835147]
[1769408923865,3.45806181,122.6,122.55,3.1820601]
[1769408924065,3.45806181,122.62,122.56,3.1820601]
[1769408924865,3.45806181,122.62,122.56,10.5350601]
[1769408925158,3.45806181,122.64,122.58,0.52664864]
[1769408925369,3.45806181,122.65,122.59,3.1820601]
[1769408925560,6.17177044,122.65,122.59,0.46835147]
[1769408925761,3.45806181,122.64,122.59,0.46835147]
[1769408926162,3.45806181,122.65,122.59,10.5331601]
[1769408926364,6.17177044,122.64,122.6,0.0619512]
[1769408926562,3.45806181,122.63,122.6,0.0619512]
[1769408930873,6.17177044,122.62,122.56,325.66]
[1769408931074,3.45806181,122.61,122.56,325.66]
[1769408932169,0.05489752,122.6,122.56,325.66]
[1769408933576,6.17177044,122.64,122.57,3.2440113]
[1769408933765,6.17177044,122.64,122.57,3.29671715]
[1769408933966,3.45806181,122.63,122.58,0.53030267]
[1769408934173,3.45806181,122.63,122.58,3.2440113]
[1769408934568,3.45806181,122.63,122.58,0.53030267]
[1769408935071,3.45806181,122.63,122.59,0.05159744]
[1769408936469,3.45806181,122.62,122.56,326.19030267]
[1769408936666,3.45806181,122.61,122.56,0.53030267]
[1769408937070,3.45806181,122.6,122.54,2.71172603]
[1769408937268,6.16978784,122.6,122.54,325.64]
[1769408937665,3.45806181,122.6,122.54,326.22190011]
[1769408938069,0.05446947,122.58,122.54,326.22190011]
[1769408938773,0.05446947,122.58,122.54,333.57610011]
[1769408938973,3.45806181,122.6,122.54,333.57610011]
[1769408939173,3.45806181,122.6,122.55,0.05901407]
[1769408940769,2.71172603,122.62,122.55,0.05901407]
[1769408940770,6.16978784,122.64,122.57,3.29362614]
[1769408940968,3.45806181,122.63,122.57,3.29362614]
[1769408941874,3.45806181,122.63,122.59,0.05165376]
[1769408942275,6.16978784,122.63,122.59,0.05165376]
[1769408942663,3.45806181,122.63,122.59,0.05165376]
[1769408942868,6.16978784,122.63,122.59,0.05165376]
[1769408943276,3.45806181,122.63,122.59,0.05165376]
[1769408944374,6.16978784,122.63,122.59,0.05165376]
[1769408944673,6.16978784,122.63,122.55,10.64740788]
[1769408944674,3.54769077,122.61,122.55,10.64740788]
[1769408945077,6.2594168,122.61,122.55,7.93568185]
[1769408945975,0.05189639,122.59,122.55,7.93568185]
[1769408946776,6.31131319,122.59,122.54,325.64]
[1769408948269,3.59958716,122.59,122.54,325.64]
[1769408951379,6.31131319,122.59,122.54,325.64]
[1769408951579,3.54769077,122.58,122.54,325.64]
[1769408952280,3.54769077,122.58,122.52,0.63393561]
[1769408955181,3.54769077,122.58,122.52,3.34566164]
[1769408955884,3.54769077,122.58,122.53,7.3548]
[1769408956178,3.54769077,122.58,122.53,10.06652603]
[1769408956378,3.54769077,122.63,122.56,0.63393561]
[1769408956572,3.54769077,122.63,122.56,329.00566164]
[1769408956573,6.2594168,122.63,122.56,329.00566164]
[1769408956976,3.54769077,122.62,122.56,329.00566164]
[1769408957884,3.54769077,122.62,122.56,333.64673561]
[1769408958879,3.54769077,122.62,122.56,336.35846164]
[1769408959080,3.54769077,122.62,122.57,7.3524]
[1769408959990,3.54769077,122.62,122.58,7.3518]
[1769408963690,3.54769077,122.62,122.57,0.63216972]
[1769408963881,3.54769077,122.62,122.56,333.0128]
[1769408964587,3.54769077,122.62,122.56,336.35669575]
[1769408969392,3.54769077,122.62,122.56,2.71172603]
[1769408971193,3.54769077,122.62,122.56,10.06472603]
[1769408971397,3.54769077,122.62,122.56,10.69689575]
[1769408976398,3.54769077,122.62,122.57,7.98164654]
[1769408976598,3.54769077,122.62,122.58,2.71172603]
[1769408977202,3.29815431,122.64,122.58,2.71172603]
[1769408978599,3.29815431,122.64,122.58,10.69287257]
[1769408980205,3.29815431,122.64,122.58,3.34097257]
[1769408981602,3.29815431,122.63,122.58,2.71172603]
[1769408981802,3.29815431,122.63,122.56,10.69367257]
[1769408983100,3.29815431,122.63,122.57,0.62924654]
[1769408986803,3.29815431,122.63,122.58,2.71172603]
[1769408995621,3.29815431,122.63,122.58,3.34090844]
[1769408996717,3.29815431,122.65,122.59,3.34090844]
[1769408999932,3.29815431,122.64,122.58,0.62924654]
[1769409000222,3.29815431,122.64,122.59,0.62924654]
[1769409000416,3.29815431,122.64,122.59,3.34090844]
[1769409002718,3.29815431,122.64,122.59,0.62924654]
[1769409003614,45.84171319,122.66,122.6,2.7116619]
[1769409003818,45.84171319,122.66,122.61,0.62928005]
[1769409004413,42.52650681,122.66,122.63,3.34094195]
[1769409004620,8.57177926,122.66,122.63,3.34094195]
[1769409004814,7.926e-05,122.66,122.64,0.62928005]
[1769409005020,6.02686828,122.7,122.64,0.62928005]
[1769409005021,3.31520638,122.7,122.65,0.62928005]
[1769409005324,6.02686828,122.73,122.66,3.34094195]
[1769409005923,3.31520638,122.73,122.66,3.34094195]
[1769409006128,3.31520638,122.73,122.67,2.7116619]
[1769409006320,3.31520638,122.73,122.66,3.34094195]
[1769409006721,0.0519978,122.71,122.66,3.34094195]
[1769409007731,0.0519978,122.71,122.67,2.7116619]
[1769409008228,0.0519978,122.71,122.66,3.34094195]
[1769409008528,0.0519978,122.71,122.67,0.62928005]
[1769409008729,0.0519978,122.71,122.65,3.34094195]
[1769409008730,3.36720418,122.71,122.65,3.34094195]
[1769409008924,3.36720418,122.71,122.66,0.62928005]
[1769409013931,3.36720418,122.71,122.66,3.34094195]
[1769409014129,3.36720418,122.71,122.66,0.62928005]
[1769409015533,3.36720418,122.71,122.66,3.34094195]
[1769409017337,3.36720418,122.71,122.65,2.7116619]
[1769409017936,3.36720418,122.71,122.65,3.34001285]
[1769409018637,3.36720418,122.71,122.65,0.62835095]
[1769409019328,3.37702804,122.7,122.63,3.34001285]
[1769409019528,3.37702804,122.7,122.64,0.62835095]
[1769409020338,0.05288416,122.68,122.64,0.62835095]
[1769409035442,0.05288416,122.68,122.64,3.34001285]
[1769409036446,0.05288416,122.68,122.65,0.62612734]
[1769409043349,0.05288416,122.68,122.63,0.62612734]
[1769409043646,3.4263068,122.68,122.63,0.62612734]
[1769409044055,0.05288416,122.68,122.63,0.62612734]
[1769409044354,3.4263068,122.68,122.63,0.62612734]
[1769409044656,6.1379687,122.68,122.63,0.62612734]
[1769409045547,3.4263068,122.68,122.63,0.62612734]
[1769409046051,2.7116619,122.64,122.58,0.62612734]
[1769409046353,3.37342264,122.66,122.6,0.62612734]
[1769409046354,6.08508454,122.66,122.6,0.62612734]
[1769409046756,3.37342264,122.66,122.6,0.62612734]
[1769409046956,6.08508454,122.66,122.6,0.62612734]
[1769409047649,6.08508454,122.66,122.6,7.97672734]
[1769409047855,0.0523949,122.64,122.61,0.62612734]
[1769409048452,6.08508454,122.67,122.62,0.57373244]
[1769409049744,6.08508454,122.67,122.63,0.06026635]
[1769409050451,6.08508454,122.66,122.63,0.06026635]
[1769409050751,2.7116619,122.64,122.58,0.63399879]
[1769409051754,6.08508454,122.64,122.58,0.63399879]
[1769409051942,0.0614635,122.62,122.58,0.63399879]
[1769409057156,6.14675355,122.62,122.56,0.63399879]
[1769409057357,0.0614635,122.62,122.57,0.63399879]
[1769409058257,0.0614635,122.62,122.58,0.63399879]
[1769409058957,0.0614635,122.62,122.58,7.98559879]
[1769409059657,0.0614635,122.62,122.59,0.63399879]
[1769409060656,3.37342264,122.68,122.62,0.57253529]
[1769409060851,3.37342264,122.68,122.63,0.57253529]
[1769409061657,6.08529005,122.67,122.61,7.92233529]
[1769409062159,3.37342264,122.66,122.6,325.52]
[1769409062567,0.05725113,122.65,122.6,325.52]
[1769409062861,6.14254118,122.65,122.59,7.98147198]
[1769409063254,3.50110325,122.64,122.57,336.22020535]
[1769409063958,3.50110325,122.64,122.58,0.63603794]
[1769409064263,0.06169101,122.62,122.58,7.98783794]
[1769409064757,0.06169101,122.62,122.58,0.63603794]
[1769409065657,3.50110325,122.61,122.56,7.3529]
[1769409065861,3.50110325,122.61,122.54,10.70200535]
[1769409066162,6.21297066,122.61,122.54,7.99013794]
[1769409066350,3.50110325,122.61,122.55,3.34790535]
[1769409066556,3.50110325,122.61,122.56,2.71186741]
[1769409066749,0.05689392,122.59,122.56,2.71186741]
[1769409066954,0.05689392,122.59,122.56,3.34790535]
[1769409067457,0.05689392,122.59,122.56,0.63603794]
[1769409069268,0.05689392,122.59,122.54,3.34790535]
[1769409069766,0.05689392,122.59,122.54,0.63603794]
[1769409070060,6.26986458,122.59,122.54,0.63603794]
[1769409071062,6.26986458,122.59,122.53,325.52]
[1769409071264,6.21297066,122.58,122.53,325.52]
[1769409071462,3.50110325,122.58,122.53,325.52]
[1769409072160,6.21297066,122.58,122.53,325.52]
[1769409073060,3.50110325,122.58,122.52,10.70320535]
[1769409073968,0.06176157,122.56,122.52,10.70320535]
[1769409075467,0.06176157,122.56,122.52,3.34790535]
[1769409076062,0.06176157,122.56,122.52,0.63603794]
[1769409081069,0.06176157,122.56,122.53,1.00586126]
[1769409082868,0.06176157,122.56,122.53,8.36056126]
[1769409083973,0.06176157,122.56,122.53,1.00586126]
[1769409086777,0.06176157,122.56,122.52,7.3554]
[1769409086778,0.06176157,122.56,122.51,3.71772867]
[1769409087570,0.06176157,122.56,122.51,1.00586126]
[1769409088273,0.06176157,122.56,122.52,1.00586126]
[1769409089271,0.06176157,122.56,122.53,1.00586126]
[1769409090871,0.06176157,122.56,122.53,11.07242867]
[1769409091376,0.06176157,122.56,122.53,8.36056126]
[1769409098684,3.60043738,122.59,122.54,0.63896456]
[1769409098880,6.40324791,122.61,122.55,0.57720299]
[1769409099080,6.40324791,122.63,122.57,0.57720299]
[1769409099280,3.6913805,122.62,122.57,0.57720299]
[1769409100187,3.6913805,122.62,122.58,0.05991589]
[1769409101283,10.06046741,122.64,122.58,0.05991589]
[1769409101478,3.6913805,122.64,122.58,0.63711888]
[1769409101690,3.6913805,122.64,122.58,3.34898629]
[1769409102182,3.6913805,122.64,122.59,0.57720299]
[1769409103782,3.6913805,122.63,122.58,0.05991589]
[1769409105083,3.6913805,122.62,122.58,0.05991589]
[1769409119694,3.6913805,122.62,122.55,10.64344866]
[1769409119897,3.74429333,122.61,122.55,10.64344866]
[1769409120396,3.74429333,122.61,122.55,0.57720299]
[1769409121089,3.74429333,122.61,122.53,10.64434866]
[1769409121090,3.6913805,122.6,122.53,10.64434866]
[1769409121491,3.6913805,122.58,122.53,0.57720299]
[1769409122197,0.05827409,122.57,122.53,0.57720299]
[1769409124099,0.05827409,122.57,122.53,3.28974866]
[1769409124993,0.05827409,122.57,122.53,0.57720299]
[1769409125196,3.58437112,122.61,122.56,0.5162552]
[1769409125399,3.58437112,122.61,122.56,3.22880087]
[1769409126090,3.58437112,122.61,122.52,440.0791]
[1769409126091,3.58437112,122.61,122.54,2.71254567]
[1769409126290,3.58437112,122.6,122.54,0.5162552]
[1769409126487,3.58437112,122.6,122.57,0.05481631]
[1769409129792,10.06224567,122.62,122.57,0.05481631]
[1769409129793,3.58437112,122.62,122.57,0.05481631]
[1769409129992,3.58437112,122.64,122.58,3.22880087]
[1769409130896,3.58437112,122.64,122.6,0.06243904]
[1769409131292,6.29691679,122.64,122.6,0.06243904]
[1769409131795,3.58437112,122.63,122.6,0.06243904]
[1769409132597,3.58437112,122.63,122.57,10.06494567]
[1769409132598,3.64414112,122.63,122.57,7.93109424]
[1769409133298,3.64414112,122.63,122.57,10.64363991]
[1769409139496,0.05977,122.63,122.59,0.57702079]
[1769409139702,6.04897346,122.67,122.6,3.28956646]
[1769409139902,3.33642779,122.66,122.6,3.28956646]
[1769409141100,3.33642779,122.66,122.62,0.05518515]
[1769409149304,6.04897346,122.66,122.62,0.05518515]
[1769409149501,3.33642779,122.65,122.62,0.05518515]
[1769409150794,10.05934567,122.67,122.62,0.05518515]
[1769409150997,13.39577346,122.67,122.62,0.05518515]
[1769409151204,3.33642779,122.66,122.62,0.05518515]
[1769409156900,3.27532123,122.64,122.58,7.92661093]
[1769409157104,3.27532123,122.64,122.59,0.63019608]
[1769409158001,3.27532123,122.64,122.59,7.98149608]
[1769409159609,3.27532123,122.64,122.59,10.69404175]
[1769409160014,3.33046327,122.65,122.6,0.63019608]
[1769409164913,0.05514204,122.65,122.61,0.63019608]
[1769409165211,0.05514204,122.65,122.61,3.34274175]
[1769409166209,0.05514204,122.65,122.61,0.63019608]
[1769409166511,0.05514204,122.65,122.62,0.63019608]
[1769409171712,201.03414192,122.69,122.62,3.34274175]
[1769409172011,201.03414192,122.69,122.63,0.57505404]
[1769409172812,201.03414192,122.69,122.63,7.92395404]
[1769409173021,3.27532123,122.69,122.65,0.05969052]
[1769409175119,5.9878669,122.69,122.65,0.05969052]
[1769409175319,3.29811436,122.68,122.65,0.05969052]
[1769409178914,6.01066003,122.68,122.65,0.05969052]
[1769409179419,3.29811436,122.67,122.65,0.05969052]
[1769409179622,3.29811436,122.67,122.62,0.57505404]
[1769409180115,6.00821821,122.66,122.6,2.71010385]
[1769409180319,3.29811436,122.65,122.6,0.57505404]
[1769409180716,6.00821821,122.67,122.6,0.57505404]
[1769409180916,3.29811436,122.67,122.61,3.28515789]
[1769409181118,0.00286932,122.64,122.61,3.28515789]
[1769409181420,0.00286932,122.64,122.62,0.05984208]
[1769409194828,3.29811436,122.67,122.62,0.05984208]
[1769409195528,3.29811436,122.67,122.62,0.63621163]
[1769409196226,2.71010385,122.68,122.62,0.63621163]
[1769409196429,6.10583784,122.68,122.62,0.63621163]
[1769409196834,3.39573399,122.67,122.62,0.63621163]
[1769409197421,2.71010385,122.66,122.62,0.05984208]
[1769409197625,3.39474962,122.65,122.6,0.57559777]
[1769409198822,3.39474962,122.64,122.59,7.351]
[1769409199437,6.10485347,122.64,122.58,326.11559777]
[1769409199738,0.05704772,122.63,122.58,326.11559777]
[1769409201839,0.05704772,122.63,122.59,0.57559777]
[1769409203936,3.45179734,122.63,122.59,0.57559777]
[1769409206041,6.16190119,122.63,122.59,0.57559777]
[1769409206640,6.16190119,122.63,122.57,7.92789777]
[1769409206845,6.10485347,122.62,122.57,0.57559777]
[1769409209639,3.39474962,122.62,122.57,0.57559777]
[1769409212341,3.39474962,122.62,122.56,7.3531]
[1769409212540,3.39474962,122.61,122.55,333.44929777]
[1769409212741,3.39474962,122.61,122.56,0.57559777]
[1769409213242,0.05636672,122.6,122.56,3.28570162]
[1769409213642,0.05636672,122.6,122.56,0.57559777]
[1769409214240,0.05636672,122.6,122.56,3.28570162]
[1769409214644,0.05636672,122.6,122.56,0.57559777]
[1769409219148,2.71010385,122.62,122.57,0.27986849]
[1769409219347,3.50741688,122.62,122.57,0.27986849]
[1769409220148,3.50741688,122.62,122.58,0.22658428]
[1769409221843,3.50741688,122.62,122.57,7.40578421]
[1769409222341,3.50741688,122.62,122.57,7.63236849]
[1769409224847,3.50741688,122.62,122.57,10.34247234]
[1769409225046,3.50741688,122.62,122.58,0.22658428]
[1769409226958,3.50741688,122.62,122.57,7.40578421]
[1769409234054,3.50741688,122.62,122.57,0.05328421]
[1769409234257,3.50741688,122.61,122.57,0.05328421]
[1769409235656,3.50741688,122.6,122.55,7.3533]
[1769409236055,3.5620833,122.6,122.55,7.3533]
[1769409237057,3.5620833,122.6,122.54,2.93668813]
[1769409237262,3.50741688,122.59,122.54,0.22658428]
[1769409237862,3.50741688,122.58,122.54,0.22658428]
[1769409238354,3.50741688,122.61,122.56,0.22658428]
[1769409238556,3.50741688,122.59,122.54,0.22658428]
[1769409238758,0.05371845,122.57,122.54,0.22658428]
[1769409240864,0.05371845,122.57,122.52,328.55668813]
[1769409241060,0.05371845,122.57,122.52,325.84658428]
[1769409242064,3.56113533,122.57,122.52,325.84658428]
[1769409247762,6.27579475,122.57,122.52,325.84658428]
[1769409247964,3.29811436,122.56,122.5,0.58161506]
[1769409248966,0.05626523,122.54,122.5,0.58161506]
[1769409252465,0.05626523,122.54,122.51,0.58161506]
[1769409252674,3.29811436,122.56,122.51,0.58161506]
[1769409252874,3.29811436,122.56,122.51,0.63964394]
[1769409259877,6.01351505,122.58,122.52,0.582131]
[1769409260280,3.29885563,122.57,122.52,0.582131]
[1769409260886,3.29885563,122.57,122.53,0.06186365]
[1769409263483,6.01351505,122.57,122.53,0.06186365]
[1769409263678,3.29885563,122.56,122.53,0.06186365]
[1769409275291,3.3200832,122.59,122.53,0.6463132]
[1769409275598,3.3200832,122.59,122.53,3.36097262]
[1769409278195,3.3200832,122.58,122.53,0.6463132]
[1769409279994,3.3200832,122.58,122.53,3.36097262]
[1769409280701,3.3200832,122.58,122.53,0.6463132]
[1769409280996,2.71465942,122.57,122.49,7.94164955]
[1769409281201,3.3200832,122.55,122.49,7.94164955]
[1769409281497,3.3200832,122.54,122.49,0.58444955]
[1769409281692,3.3200832,122.54,122.48,0.58444955]
[1769409282401,0.05542961,122.52,122.48,0.58444955]
[1769409283692,3.37551281,122.52,122.46,3.29910897]
[1769409283897,3.37551281,122.52,122.46,0.58444955]
[1769409284599,3.3200832,122.51,122.46,0.58444955]
[1769409291608,3.3200832,122.51,122.45,2.71465942]
[1769409291810,3.3200832,122.51,122.45,3.29910897]
[1769409292608,0.05916279,122.49,122.45,3.29910897]
[1769409293412,0.05916279,122.49,122.46,0.58444955]
[1769409296812,3.37924599,122.49,122.44,328.47465942]
[1769409297009,3.37924599,122.49,122.43,7.3607]
[1769409297312,3.37924599,122.49,122.44,2.71465942]
[1769409297616,3.37924599,122.49,122.43,0.58444955]
[1769409297814,3.3200832,122.48,122.43,0.58444955]
[1769409298606,3.3200832,122.48,122.42,2.71465942]
[1769409298806,3.3200832,122.48,122.41,10.66120897]
[1769409299517,0.05176343,122.46,122.41,10.66120897]
[1769409300817,0.05176343,122.46,122.42,7.3614]
[1769409301012,0.05176343,122.46,122.43,0.58444955]
[1769409301220,3.3200832,122.5,122.44,0.53268612]
[1769409301414,3.32399608,122.49,122.43,0.05265284]
[1769409301615,6.04262435,122.49,122.43,0.05265284]
[1769409301817,3.32399608,122.48,122.42,10.61251439]
[1769409303123,3.32399608,122.48,122.44,0.05422019]
[1769409304824,3.29688598,122.46,122.4,7.3626]
[1769409305022,3.29688598,122.46,122.41,0.58372626]
[1769409305220,3.29688598,122.46,122.41,3.30235453]
[1769409306325,0.059479,122.45,122.41,3.30235453]
[1769409306923,0.059479,122.45,122.41,10.66445453]
[1769409308119,0.059479,122.45,122.42,3.30235453]
[1769409308425,3.29688598,122.48,122.43,2.71862827]
[1769409308624,3.29688598,122.48,122.42,3.35896308]
[1769409309227,3.29688598,122.48,122.42,2.77523682]
[1769409309422,3.29688598,122.47,122.42,0.05660855]
[1769409309622,6.01551425,122.47,122.42,0.05660855]
[1769409309926,3.29688598,122.46,122.42,0.05660855]
[1769409316121,3.29688598,122.48,122.42,3.35896308]
[1769409319028,3.29688598,122.48,122.43,2.71862827]
[1769409323230,3.29688598,122.48,122.42,3.35896308]
[1769409326634,3.29688598,122.48,122.43,2.71862827]
[1769409327029,10.07562827,122.5,122.45,2.71862827]
[1769409327030,3.55562761,122.5,122.45,2.71862827]
[1769409327538,3.55562761,122.5,122.43,10.07942827]
[1769409327833,6.27425588,122.5,122.43,10.07942827]
[1769409328035,6.27425588,122.5,122.46,0.05240029]
[1769409328036,3.55562761,122.49,122.46,0.05240029]
[1769409328432,3.55562761,122.47,122.42,3.30209315]
[1769409328633,3.55562761,122.47,122.42,0.58346488]
[1769409333142,3.55562761,122.47,122.41,10.08042827]
[1769409333944,3.55562761,122.47,122.41,10.71790811]
[1769409334144,0.0594025,122.45,122.41,10.71790811]
[1769409335850,3.54090375,122.45,122.39,53.54985286]
[1769409337753,3.54090375,122.45,122.4,0.63747984]
[1769409342257,3.54090375,122.45,122.4,8.00017984]
[1769409343360,0.0594025,122.45,122.42,0.63747984]
[1769409346557,0.0594025,122.45,122.42,3.35610811]
[1769409347064,0.0594025,122.45,122.42,0.63747984]
[1769409348760,0.0594025,122.45,122.43,0.63747984]
[1769409348965,3.48150125,122.49,122.43,3.35610811]
[1769409349367,3.48150125,122.49,122.43,10.71700811]
[1769409350260,3.48150125,122.49,122.45,0.05633026]
[1769409351865,3.48150125,122.48,122.45,0.05633026]
[1769409354868,9.91545785,122.5,122.45,0.05633026]
[1769409356258,12.63408612,122.5,122.45,0.05633026]
[1769409357070,9.91545785,122.5,122.45,0.05633026]
[1769409357767,9.91545785,122.5,122.45,0.6938101]
[1769409357973,3.48150125,122.52,122.46,2.71862827]
[1769409358168,3.48150125,122.51,122.45,3.41243837]
[1769409358572,3.48150125,122.51,122.45,3.35610811]
[1769409358976,3.48150125,122.51,122.47,0.05217724]
[1769409360776,3.48150125,122.53,122.47,0.68965708]
[1769409361473,3.48150125,122.53,122.48,3.35610811]
[1769409361675,3.48150125,122.53,122.48,3.35373005]
[1769409368278,3.48150125,122.53,122.49,2.71625021]
[1769409369079,3.37975866,122.55,122.5,3.3553744]
[1769409369379,3.37975866,122.55,122.5,3.4127859]
[1769409371580,3.37975866,122.55,122.5,0.69653569]
[1769409372879,3.37975866,122.53,122.46,7.3588]
[1769409373179,3.37975866,122.51,122.46,7.3588]
[1769409373380,3.37975866,122.51,122.45,0.69653569]
[1769409374177,3.37975866,122.51,122.46,0.69653569]
[1769409374379,0.05295905,122.49,122.46,0.69653569]
[1769409375781,0.05295905,122.49,122.47,0.69653569]
[1769409377581,0.05295905,122.49,122.45,0.69119342]
[1769409380285,3.54156444,122.49,122.43,0.69119342]
[1769409380777,6.25781465,122.49,122.43,0.69119342]
[1769409381684,6.25781465,122.49,122.42,0.69119342]
[1769409381685,3.48860539,122.48,122.42,0.69119342]
[1769409381887,3.48860539,122.48,122.42,3.40744363]
[1769409382579,2.71625021,122.49,122.39,43.52183817]
[1769409382580,6.2048556,122.45,122.39,43.52183817]
[1769409382780,3.48860539,122.45,122.39,46.23808838]
[1769409382980,3.48860539,122.45,122.4,0.69119342]
[1769409383481,6.2048556,122.45,122.4,0.69119342]
[1769409385084,3.48860539,122.45,122.4,0.69119342]
[1769409387586,0.05255873,122.46,122.42,3.40744363]
[1769409388079,3.48860539,122.47,122.42,3.40744363]
[1769409388473,0.05335796,122.45,122.42,3.40744363]
[1769409389286,0.05335796,122.45,122.42,0.69119342]
[1769409390988,3.54196335,122.45,122.4,8.05359342]
[1769409391292,3.54196335,122.45,122.4,10.76984363]
[1769409391489,0.05335796,122.45,122.4,10.76984363]
[1769409392589,0.05335796,122.45,122.41,0.69119342]
[1769409393393,0.05335796,122.45,122.41,3.40744363]
[1769409394392,0.05335796,122.45,122.42,3.77735512]
[1769409396796,0.05335796,122.45,122.42,1.06110491]
[1769409398194,2.71625021,122.49,122.41,10.07825021]
[1769409398195,3.36795496,122.49,122.44,1.00774695]
[1769409398394,3.36795496,122.49,122.44,3.72399716]
[1769409398597,2.71625021,122.51,122.45,3.72399716]
[1769409398598,3.36795496,122.51,122.45,3.72399716]
[1769409398794,3.36795496,122.51,122.45,1.00774695]
[1769409399091,3.36795496,122.51,122.45,3.72399716]
[1769409399396,6.08420517,122.48,122.42,334.36924695]
[1769409400193,0.05768475,122.46,122.42,334.36924695]
[1769409401397,0.05768475,122.46,122.42,337.08549716]
[1769409402598,0.00216523,122.46,122.42,337.08549716]
[1769409402789,0.00216523,122.46,122.43,0.05493989]
[1769409404096,0.00216523,122.46,122.43,3.77893705]
[1769409406495,3.36795496,122.48,122.44,2.71625021]
[1769409408497,3.36795496,122.48,122.43,2.7711901]
[1769409409702,3.36795496,122.48,122.43,0.05493989]
[1769409414402,3.36795496,122.48,122.43,2.7711901]
[1769409416704,3.36795496,122.48,122.43,3.77893705]
[1769409417506,3.36795496,122.48,122.44,2.71625021]
[1769409422010,3.36795496,122.51,122.46,2.71625021]
[1769409422207,3.36795496,122.51,122.47,2.71625021]
[1769409422912,3.36795496,122.51,122.48,0.05374038]
[1769409423603,3.36795496,122.51,122.46,2.71740554]
[1769409425109,3.36795496,122.51,122.45,2.71740554]
[1769409425306,3.36795496,122.51,122.45,3.05882066]
[1769409427010,3.36795496,122.51,122.46,2.71740554]
[1769409427610,0.05158703,122.5,122.46,2.71740554]
[1769409429614,0.05158703,122.5,122.45,3.05882066]
[1769409431316,0.05158703,122.5,122.46,2.71740554]
[1769409432115,3.5979018,122.5,122.46,2.71740554]
[1769409432311,3.5979018,122.5,122.45,3.05882066]
[1769409432511,3.54631477,122.49,122.43,3.05882066]
[1769409432817,6.26372031,122.48,122.43,0.34141512]
[1769409433216,3.54631477,122.47,122.42,7.3613]
[1769409433417,3.54631477,122.47,122.42,7.70271512]
[1769409433816,0.05200622,122.46,122.42,7.70271512]
[1769409435315,0.05200622,122.46,122.42,10.42012066]
[1769409437115,0.05200622,122.46,122.42,0.34141512]
[1769409437323,3.2504333,122.45,122.38,4.83193798]
[1769409437523,3.2504333,122.45,122.39,0.69322508]
[1769409438023,3.2504333,122.45,122.4,0.69322508]
[1769409438421,3.2504333,122.45,122.4,3.41063062]
[1769409438724,3.2504333,122.45,122.4,0.69322508]
[1769409439022,3.2504333,122.45,122.4,3.41063062]
[1769409441321,0.05155105,122.44,122.4,3.41063062]
[1769409443126,0.05155105,122.44,122.4,0.69322508]
[1769409445127,6.01938989,122.44,122.37,332.21613242]
[1769409445323,3.2504333,122.43,122.37,332.21613242]
[1769409445927,3.2504333,122.44,122.39,0.69322508]
[1769409446130,3.2504333,122.46,122.4,3.41063062]
[1769409446928,3.2504333,122.46,122.42,0.06199029]
[1769409448132,3.2504333,122.44,122.37,323.5027552]
[1769409448333,3.2504333,122.44,122.38,3.41940964]
[1769409448736,3.2504333,122.43,122.38,0.7020041]
[1769409449535,0.05291624,122.42,122.38,0.7020041]
[1769409454735,0.05291624,122.42,122.39,1.0725321]